[Event "Open International Liffre 2019"]
[Site "Liffre"]
[Date "2019.10.22"]
[Round "5.4"]
[White "Sundararajan, Kidambi"]
[Black "Yche, Michel"]
[Result "1-0"]
[TimeControl "1h30 + 30s/coup + 30 min /40 Coup"]
[WhiteTitle "GM"]
[WhiteElo "2422"]
[BlackElo "1951"]

1. d4 {[%clk 01:30:56]} {[%emt 00:00:03]} Nf6 {[%clk 01:30:53]} {[%emt
00:00:07]} 2. Nf3 {[%clk 01:31:19]} {[%emt 00:00:06]} g6 {[%clk 01:31:14]}
{[%emt 00:00:10]} 3. Bg5 {[%clk 01:31:37]} {[%emt 00:00:13]} Bg7 {[%clk
01:31:33]} {[%emt 00:00:11]} 4. Nbd2 {[%clk 01:31:54]} {[%emt 00:00:12]} d6
{[%clk 01:30:59]} {[%emt 00:01:05]} 5. e4 {[%clk 01:32:06]} {[%emt 00:00:17]}
O-O {[%clk 01:31:10]} {[%emt 00:00:18]} 6. c3 {[%clk 01:32:29]} {[%emt
00:00:08]} Re8 {[%clk 01:30:43]} {[%emt 00:00:59]} 7. Bc4 {[%clk 01:31:21]}
{[%emt 00:01:36]} e5 {[%clk 01:29:32]} {[%emt 00:01:42]} 8. dxe5 {[%clk
01:31:02]} {[%emt 00:00:48]} dxe5 {[%clk 01:29:46]} {[%emt 00:00:16]} 9. O-O
{[%clk 01:29:56]} {[%emt 00:01:35]} c6 {[%clk 01:28:38]} {[%emt 00:01:39]} 10.
a4 {[%clk 01:28:03]} {[%emt 00:02:23]} Qc7 {[%clk 01:24:20]} {[%emt 00:04:48]}
11. Re1 {[%clk 01:27:31]} {[%emt 00:01:01]} Be6 {[%clk 01:21:34]} {[%emt
00:03:17]} 12. a5 {[%clk 01:22:00]} {[%emt 00:06:02]} Nbd7 {[%clk 01:20:10]}
{[%emt 00:01:54]} 13. b4 {[%clk 01:21:38]} {[%emt 00:00:50]} Rad8 {[%clk
01:19:18]} {[%emt 00:01:23]} 14. Qc2 {[%clk 01:18:31]} {[%emt 00:03:36]} h6
{[%clk 01:17:17]} {[%emt 00:02:32]} 15. Be3 {[%clk 01:15:46]} {[%emt 00:03:10]}
Ra8 {[%clk 01:09:50]} {[%emt 00:08:02]} 16. h3 {[%clk 01:13:38]} {[%emt
00:02:38]} Nh5 {[%clk 01:08:00]} {[%emt 00:02:21]} 17. Bxe6 {[%clk 01:10:51]}
{[%emt 00:03:16]} Rxe6 {[%clk 01:08:11]} {[%emt 00:00:19]} 18. Nc4 {[%clk
01:04:29]} {[%emt 00:06:51]} Bf8 {[%clk 01:03:41]} {[%emt 00:05:01]} 19. Rad1
{[%clk 01:01:21]} {[%emt 00:03:38]} Ndf6 {[%clk 00:57:19]} {[%emt 00:06:53]} 20.
Nh2 {[%clk 00:51:30]} {[%emt 00:10:19]} Kh7 {[%clk 00:52:07]} {[%emt 00:05:44]}
21. Ng4 {[%clk 00:48:35]} {[%emt 00:03:24]} Nxg4 {[%clk 00:45:28]} {[%emt
00:07:10]} 22. hxg4 {[%clk 00:48:55]} {[%emt 00:00:09]} Nf6 {[%clk 00:35:26]}
{[%emt 00:10:31]} 23. f3 {[%clk 00:46:51]} {[%emt 00:02:34]} g5 {[%clk
00:32:41]} {[%emt 00:03:16]} 24. Qf2 {[%clk 00:45:39]} {[%emt 00:01:41]} Qb8
{[%clk 00:30:20]} {[%emt 00:02:53]} 25. Rd2 {[%clk 00:44:39]} {[%emt 00:01:29]}
Re8 {[%clk 00:28:43]} {[%emt 00:02:08]} 26. Red1 {[%clk 00:44:42]} {[%emt
00:00:25]} Kg7 {[%clk 00:28:20]} {[%emt 00:00:55]} 27. g3 {[%clk 00:43:13]}
{[%emt 00:01:58]} Be7 {[%clk 00:27:57]} {[%emt 00:00:54]} 28. Kg2 {[%clk
00:39:40]} {[%emt 00:04:01]} Rh8 {[%clk 00:23:34]} {[%emt 00:04:55]} 29. Bc5
{[%clk 00:37:52]} {[%emt 00:02:17]} Bxc5 {[%clk 00:16:20]} {[%emt 00:07:45]} 30.
Qxc5 {[%clk 00:38:08]} {[%emt 00:00:14]} Re8 {[%clk 00:15:54]} {[%emt
00:00:56]} 31. Rd6 {[%clk 00:35:00]} {[%emt 00:03:37]} Qc7 {[%clk 00:11:44]}
{[%emt 00:04:41]} 32. Ne3 {[%clk 00:33:46]} {[%emt 00:01:43]} Re6 {[%clk
00:08:52]} {[%emt 00:03:23]} 33. Nf5+ {[%clk 00:34:04]} {[%emt 00:00:10]} Kh7
{[%clk 00:07:22]} {[%emt 00:02:01]} 34. Qe3 {[%clk 00:29:14]} {[%emt 00:05:20]}
Rxd6 {[%clk 00:02:15]} {[%emt 00:05:37]} 35. Rxd6 {[%clk 00:29:33]} {[%emt
00:00:11]} Ng8 {[%clk 00:02:19]} {[%emt 00:00:27]} 36. Qd2 {[%clk 00:26:07]}
{[%emt 00:03:54]} Rf8 {[%clk 00:01:26]} {[%emt 00:01:24]} 37. Rd7 {[%clk
00:25:18]} {[%emt 00:01:18]} Qb8 {[%clk 00:01:32]} {[%emt 00:00:26]} 38. Qd6
{[%clk 00:24:39]} {[%emt 00:01:07]} Qxd6 {[%clk 00:00:54]} {[%emt 00:01:09]} 39.
Nxd6 {[%clk 00:24:48]} {[%emt 00:00:21]} Nf6 {[%clk 00:00:38]} {[%emt
00:00:46]} 40. Rxb7 {[%clk 00:23:51]} {[%emt 00:01:27]} Rd8 {[%clk 00:00:42]}
{[%emt 00:00:26]} 41. Nxf7 {[%clk 00:23:51]} {[%emt 00:00:30]} Rd7 {[%clk
00:25:49]} {[%emt 00:05:24]} 42. Rxd7 {[%clk 00:53:55]} {[%emt 00:00:25]} Nxd7
{[%clk 00:26:12]} {[%emt 00:00:07]} 43. Nd8 {[%clk 00:54:08]} {[%emt 00:00:17]}
Nb8 {[%clk 00:24:32]} {[%emt 00:02:11]} 44. Nf7 {[%clk 00:54:11]} {[%emt
00:00:26]} Nd7 {[%clk 00:24:53]} {[%emt 00:00:09]} 45. Kf2 {[%clk 00:54:15]}
{[%emt 00:00:26]} Kg6 {[%clk 00:25:00]} {[%emt 00:00:23]} 46. Nd6 {[%clk
00:54:31]} {[%emt 00:00:13]} a6 {[%clk 00:22:25]} {[%emt 00:03:07]} 47. Nf5
{[%clk 00:53:48]} {[%emt 00:01:12]} c5 {[%clk 00:21:23]} {[%emt 00:01:32]} 48.
Ke3 {[%clk 00:54:04]} {[%emt 00:00:13]} h5 {[%clk 00:19:21]} {[%emt 00:02:33]}
49. gxh5+ {[%clk 00:54:13]} {[%emt 00:00:20]} Kxh5 {[%emt 00:00:32]} 50. g4
{[%clk 00:54:22]} Kg6 {[%clk 00:19:46]} {[%emt 00:00:25]} 51. Kd3 {[%clk
00:54:44]} {[%emt 00:00:08]} Kf6 {[%clk 00:19:38]} {[%emt 00:00:37]} 52. Kc4
{[%clk 00:55:08]} {[%emt 00:00:07]} cxb4 {[%clk 00:19:55]} {[%emt 00:00:13]} 53.
cxb4 {[%clk 00:55:32]} {[%emt 00:00:07]} Ke6 {[%clk 00:19:58]} {[%emt
00:00:26]} 54. b5 {[%clk 00:55:55]} {[%emt 00:00:08]} Nb8 {[%clk 00:19:34]}
{[%emt 00:00:53]} 55. bxa6 {[%clk 00:56:15]} {[%emt 00:00:10]} Nxa6 {[%clk
00:19:32]} {[%emt 00:00:32]} 56. Kb5 {[%clk 00:56:38]} {[%emt 00:00:08]} 1-0

[ePGN "0.1;DGT LiveChess/2.1"]

[Event "Open International Liffre 2019"]
[Site "Liffre"]
[Date "2019.10.22"]
[Round "6.1"]
[White "Viani Antonio Dcunha"]
[Black "Nikolov, Momchil"]
[Result "1/2-1/2"]
[TimeControl "1h30 + 30s/coup + 30 min /40 Coup"]
[WhiteTitle "IM"]
[BlackTitle "GM"]
[WhiteElo "2380"]
[BlackElo "2557"]

1. e4 {[%clk 01:30:42]} {[%emt 00:00:17]} e5 {[%clk 01:27:13]} {[%emt
00:03:47]} 2. Nf3 {[%clk 01:30:44]} {[%emt 00:00:28]} Nc6 {[%clk 01:27:31]}
{[%emt 00:00:13]} 3. Bc4 {[%clk 01:29:59]} {[%emt 00:01:15]} Bc5 {[%clk
01:27:48]} {[%emt 00:00:12]} 4. O-O {[%clk 01:29:53]} {[%emt 00:00:36]} Nf6
{[%clk 01:28:07]} {[%emt 00:00:11]} 5. d3 {[%clk 01:29:36]} {[%emt 00:00:47]}
a6 {[%clk 01:28:06]} {[%emt 00:00:31]} 6. Bb3 {[%clk 01:29:22]} {[%emt
00:00:44]} d6 {[%clk 01:27:58]} {[%emt 00:00:38]} 7. c3 {[%clk 01:29:42]}
{[%emt 00:00:10]} Ba7 {[%clk 01:28:03]} {[%emt 00:00:25]} 8. Nbd2 {[%clk
01:29:13]} {[%emt 00:00:59]} O-O {[%clk 01:28:00]} {[%emt 00:00:34]} 9. h3
{[%clk 01:29:06]} {[%emt 00:00:37]} Be6 {[%clk 01:25:45]} {[%emt 00:02:43]} 10.
Re1 {[%clk 01:28:49]} {[%emt 00:00:48]} h6 {[%clk 01:19:11]} {[%emt 00:07:04]}
11. Nf1 {[%clk 01:21:21]} {[%emt 00:07:59]} Re8 {[%clk 01:18:11]} {[%emt
00:01:29]} 12. Be3 {[%clk 01:20:37]} {[%emt 00:01:15]} d5 {[%clk 01:16:25]}
{[%emt 00:02:15]} 13. Bxa7 {[%clk 01:20:34]} {[%emt 00:00:34]} Rxa7 {[%clk
01:16:43]} {[%emt 00:00:12]} 14. exd5 Bxd5 {[%clk 01:16:59]} 15. Bxd5 {[%clk
01:15:07]} {[%emt 00:00:43]} Qxd5 {[%clk 01:11:32]} {[%emt 00:05:57]} 16. Ne3
{[%clk 01:15:03]} {[%emt 00:00:35]} Qc5 {[%clk 01:09:05]} {[%emt 00:02:56]} 17.
Qc2 {[%clk 01:07:12]} {[%emt 00:08:22]} a5 {[%clk 01:03:12]} {[%emt 00:06:22]}
18. Rad1 {[%clk 01:06:12]} {[%emt 00:01:30]} Raa8 {[%clk 01:02:05]} {[%emt
00:01:37]} 19. d4 {[%clk 01:05:57]} {[%emt 00:00:46]} exd4 {[%clk 01:01:51]}
{[%emt 00:00:43]} 20. Nxd4 {[%clk 01:06:17]} {[%emt 00:00:10]} g6 {[%clk
00:51:39]} {[%emt 00:10:41]} 21. Nxc6 {[%clk 01:03:14]} {[%emt 00:03:35]} Qxc6
{[%clk 00:48:45]} {[%emt 00:03:24]} 22. Rd4 {[%clk 01:03:06]} {[%emt 00:00:37]}
Rad8 {[%clk 00:47:21]} {[%emt 00:01:54]} 23. Red1 {[%clk 01:02:44]} {[%emt
00:00:52]} Rxd4 {[%clk 00:47:30]} {[%emt 00:00:22]} 24. Rxd4 {[%clk 01:03:06]}
{[%emt 00:00:08]} Re4 {[%clk 00:46:27]} {[%emt 00:01:32]} 25. Qd3 {[%clk
01:01:58]} {[%emt 00:01:39]} Kg7 {[%clk 00:38:52]} {[%emt 00:08:04]} 26. c4
{[%clk 00:57:54]} {[%emt 00:04:35]} Rxd4 {[%clk 00:33:26]} {[%emt 00:05:55]} 27.
Qxd4 {[%clk 00:58:15]} {[%emt 00:00:09]} Qe4 {[%clk 00:32:44]} {[%emt
00:01:12]} 28. Qc3 {[%clk 00:57:04]} {[%emt 00:01:42]} c6 {[%clk 00:31:16]}
{[%emt 00:01:57]} 29. b3 {[%clk 00:53:04]} {[%emt 00:04:30]} b6 {[%clk
00:29:23]} {[%emt 00:02:23]} 30. Ng4 {[%clk 00:49:42]} {[%emt 00:03:53]} Qb1+
{[%clk 00:26:59]} {[%emt 00:02:52]} 31. Kh2 {[%clk 00:49:59]} {[%emt 00:00:13]}
Qf5 {[%clk 00:27:25]} {[%emt 00:00:04]} 32. c5 {[%clk 00:47:06]} {[%emt
00:03:24]} bxc5 {[%clk 00:25:11]} {[%emt 00:02:44]} 33. Nxf6 {[%clk 00:46:33]}
{[%emt 00:01:03]} Qf4 {[%clk 00:22:33]} {[%emt 00:03:08]} 34. Kg1 {[%clk
00:46:45]} {[%emt 00:00:18]} Qxf6 {[%clk 00:21:59]} {[%emt 00:01:04]} 35. Qxa5
{[%clk 00:47:02]} {[%emt 00:00:13]} Qa1+ {[%clk 00:22:17]} {[%emt 00:00:13]} 36.
Kh2 {[%clk 00:47:10]} {[%emt 00:00:22]} Qe5 {[%clk 00:22:30]} {[%emt 00:00:16]}
37. Kg1 {[%clk 00:45:36]} {[%emt 00:02:04]} Qa1+ {[%clk 00:22:46]} {[%emt
00:00:14]} 38. Kh2 {[%clk 00:45:59]} {[%emt 00:00:08]} Qe5 {[%clk 00:23:01]}
{[%emt 00:00:14]} 39. Kg1 {[%clk 00:46:11]} {[%emt 00:00:18]} Qa1+ {[%clk
00:23:22]} {[%emt 00:00:09]} 1/2-1/2

[ePGN "0.1;DGT LiveChess/2.1"]

[Event "Open International Liffre 2019"]
[Site "Liffre"]
[Date "2019.10.22"]
[Round "6.2"]
[White "Sundararajan, Kidambi"]
[Black "Enchev, Ivajlo"]
[Result "1/2-1/2"]
[TimeControl "1h30 + 30s/coup + 30 min /40 Coup"]
[WhiteTitle "GM"]
[BlackTitle "GM"]
[WhiteElo "2422"]
[BlackElo "2488"]

1. d4 {[%clk 01:30:55]} {[%emt 00:00:04]} Nf6 {[%clk 01:27:23]} {[%emt
00:03:37]} 2. c4 {[%clk 01:31:16]} {[%emt 00:00:09]} e6 {[%clk 01:27:48]}
{[%emt 00:00:06]} 3. Nf3 {[%clk 01:31:17]} {[%emt 00:00:29]} d5 {[%clk
01:28:08]} {[%emt 00:00:10]} 4. Bg5 {[%clk 01:30:55]} {[%emt 00:00:51]} h6
{[%clk 01:27:14]} {[%emt 00:01:25]} 5. Bxf6 {[%clk 01:30:45]} {[%emt 00:00:40]}
Qxf6 {[%clk 01:27:41]} {[%emt 00:00:04]} 6. Nbd2 {[%clk 01:29:42]} {[%emt
00:01:32]} Nc6 {[%clk 01:21:31]} {[%emt 00:06:40]} 7. e3 {[%clk 01:29:33]}
{[%emt 00:00:39]} Bb4 {[%clk 01:17:58]} {[%emt 00:04:03]} 8. Be2 {[%clk
01:25:55]} {[%emt 00:04:07]} dxc4 {[%clk 01:16:23]} {[%emt 00:02:06]} 9. O-O
{[%clk 01:25:47]} {[%emt 00:00:38]} Bxd2 {[%clk 01:15:19]} {[%emt 00:01:34]} 10.
Nxd2 {[%clk 01:21:38]} {[%emt 00:04:39]} O-O {[%clk 01:15:38]} {[%emt
00:00:11]} 11. f4 {[%clk 01:09:44]} {[%emt 00:12:24]} Rd8 {[%clk 01:06:48]}
{[%emt 00:09:20]} 12. Nxc4 {[%clk 01:08:29]} {[%emt 00:01:45]} Ne7 {[%clk
01:06:36]} {[%emt 00:00:41]} 13. Qb3 {[%clk 01:04:50]} {[%emt 00:04:09]} b6
{[%clk 01:05:27]} {[%emt 00:01:40]} 14. Bf3 {[%clk 01:03:28]} {[%emt 00:01:51]}
Rb8 {[%clk 01:05:34]} {[%emt 00:00:24]} 15. Ne5 {[%clk 01:00:53]} {[%emt
00:03:05]} Bb7 {[%clk 01:01:35]} {[%emt 00:04:29]} 16. Bxb7 {[%clk 00:56:46]}
{[%emt 00:04:37]} Rxb7 {[%clk 01:02:04]} 17. Rac1 {[%clk 00:56:46]} {[%emt
00:00:30]} Qf5 {[%clk 01:01:44]} {[%emt 00:00:50]} 18. Nc6 {[%clk 00:50:11]}
{[%emt 00:07:06]} Nxc6 {[%clk 01:01:35]} {[%emt 00:00:40]} 19. Rxc6 {[%clk
00:50:35]} {[%emt 00:00:06]} Rd6 {[%clk 00:58:23]} {[%emt 00:03:41]} 20. Rxd6
{[%clk 00:43:14]} {[%emt 00:07:50]} cxd6 {[%clk 00:58:47]} {[%emt 00:00:07]} 21.
Rc1 {[%clk 00:43:22]} {[%emt 00:00:22]} Qe4 {[%clk 00:57:38]} {[%emt 00:01:38]}
22. Rc8+ {[%clk 00:41:42]} {[%emt 00:02:11]} Kh7 {[%clk 00:58:07]} 23. Qc2
{[%clk 00:41:52]} {[%emt 00:00:21]} Qxc2 {[%clk 00:58:04]} {[%emt 00:00:32]} 24.
Rxc2 {[%clk 00:42:16]} {[%emt 00:00:07]} d5 {[%clk 00:57:46]} {[%emt 00:00:48]}
25. Kf2 {[%clk 00:42:08]} {[%emt 00:00:38]} Kg6 {[%clk 00:57:52]} {[%emt
00:00:24]} 26. g4 {[%clk 00:41:41]} {[%emt 00:00:58]} h5 {[%clk 00:57:52]}
{[%emt 00:00:29]} 27. h3 {[%clk 00:42:04]} {[%emt 00:00:06]} hxg4 {[%clk
00:58:17]} {[%emt 00:00:06]} 28. hxg4 {[%clk 00:42:28]} {[%emt 00:00:06]} Kf6
{[%clk 00:58:17]} {[%emt 00:00:29]} 29. Kf3 {[%clk 00:34:05]} {[%emt 00:08:53]}
1/2-1/2

[ePGN "0.1;DGT LiveChess/2.1"]

[Event "Open International Liffre 2019"]
[Site "Liffre"]
[Date "2019.10.22"]
[Round "6.3"]
[White "Guilleux, Fabien"]
[Black "Naumkin, Igor"]
[Result "1/2-1/2"]
[TimeControl "1h30 + 30s/coup + 30 min /40 Coup"]
[WhiteTitle "IM"]
[BlackTitle "GM"]
[WhiteElo "2433"]
[BlackElo "2385"]

1. Nf3 {[%clk 01:30:56]} {[%emt 00:00:03]} Nf6 {[%clk 01:28:55]} {[%emt
00:02:06]} 2. c4 {[%clk 01:31:11]} {[%emt 00:00:15]} e6 {[%clk 01:29:15]}
{[%emt 00:00:08]} 3. Nc3 {[%clk 01:31:31]} {[%emt 00:00:12]} Bb4 {[%clk
01:29:29]} {[%emt 00:00:15]} 4. Qc2 {[%clk 01:31:48]} {[%emt 00:00:13]} O-O
{[%clk 01:29:39]} {[%emt 00:00:20]} 5. a3 {[%clk 01:32:01]} {[%emt 00:00:17]}
Bxc3 {[%clk 01:29:55]} {[%emt 00:00:13]} 6. Qxc3 {[%clk 01:32:19]} {[%emt
00:00:14]} d6 {[%clk 01:29:30]} {[%emt 00:00:54]} 7. g3 {[%clk 01:23:56]}
{[%emt 00:08:53]} b6 {[%clk 01:25:36]} {[%emt 00:04:24]} 8. Bg2 {[%clk
01:23:55]} {[%emt 00:00:32]} Bb7 {[%clk 01:25:57]} {[%emt 00:00:09]} 9. O-O
{[%clk 01:23:49]} {[%emt 00:00:36]} Nbd7 {[%clk 01:26:02]} {[%emt 00:00:23]} 10.
Re1 {[%clk 01:21:03]} {[%emt 00:03:17]} a5 {[%clk 01:25:03]} {[%emt 00:01:30]}
11. b3 {[%clk 01:21:17]} {[%emt 00:00:16]} Qe7 {[%clk 01:23:24]} {[%emt
00:02:07]} 12. Bb2 {[%clk 01:21:30]} {[%emt 00:00:18]} c5 {[%clk 01:21:26]}
{[%emt 00:02:28]} 13. d4 {[%clk 01:11:54]} {[%emt 00:10:07]} Ne4 {[%clk
01:15:43]} {[%emt 00:06:11]} 14. Qc2 {[%clk 01:11:21]} {[%emt 00:01:05]} f5
{[%clk 01:15:15]} {[%emt 00:00:56]} 15. Rad1 {[%clk 01:10:58]} {[%emt
00:00:54]} Ndf6 {[%clk 01:12:13]} {[%emt 00:03:31]} 16. d5 {[%clk 00:44:21]}
{[%emt 00:27:09]} exd5 {[%clk 01:06:32]} {[%emt 00:06:10]} 17. Bxf6 {[%clk
00:43:58]} {[%emt 00:00:53]} Rxf6 {[%clk 01:04:21]} {[%emt 00:02:39]} 18. cxd5
{[%clk 00:44:19]} {[%emt 00:00:11]} f4 {[%clk 01:02:42]} {[%emt 00:02:08]} 19.
Rd3 {[%clk 00:34:31]} {[%emt 00:10:19]} Ba6 {[%clk 00:46:56]} {[%emt 00:16:17]}
20. gxf4 {[%clk 00:28:52]} {[%emt 00:06:09]} Rxf4 {[%clk 00:45:23]} {[%emt
00:02:01]} 21. Re3 {[%clk 00:29:10]} {[%emt 00:00:13]} Re8 {[%clk 00:42:31]}
{[%emt 00:03:21]} 22. Nd2 {[%clk 00:27:48]} {[%emt 00:01:53]} Qh4 {[%clk
00:41:29]} {[%emt 00:01:32]} 23. Rf1 {[%clk 00:21:21]} {[%emt 00:06:57]} Nf6
{[%clk 00:39:19]} {[%emt 00:02:39]} 24. Rxe8+ {[%clk 00:21:36]} {[%emt
00:00:16]} Nxe8 {[%clk 00:39:46]} {[%emt 00:00:03]} 25. Ne4 {[%clk 00:21:58]}
{[%emt 00:00:08]} Bc8 {[%clk 00:32:07]} {[%emt 00:08:08]} 26. e3 {[%clk
00:20:11]} {[%emt 00:02:18]} Rf5 {[%clk 00:28:51]} {[%emt 00:03:45]} 27. Ng3
{[%clk 00:19:20]} {[%emt 00:01:22]} Re5 {[%clk 00:28:04]} {[%emt 00:01:16]} 28.
Qc4 {[%clk 00:14:15]} {[%emt 00:05:36]} Qd8 {[%clk 00:25:07]} {[%emt 00:03:27]}
29. b4 {[%clk 00:13:32]} {[%emt 00:01:13]} axb4 {[%clk 00:23:56]} {[%emt
00:01:41]} 30. axb4 {[%clk 00:13:54]} {[%emt 00:00:09]} Nf6 {[%clk 00:21:48]}
{[%emt 00:02:38]} 31. bxc5 {[%clk 00:12:02]} {[%emt 00:02:22]} bxc5 {[%clk
00:22:06]} {[%emt 00:00:12]} 32. Rb1 {[%clk 00:11:50]} {[%emt 00:00:40]} Re8
{[%clk 00:20:59]} {[%emt 00:01:37]} 33. Rb8 {[%clk 00:08:13]} {[%emt 00:04:09]}
Nd7 {[%clk 00:20:42]} {[%emt 00:00:45]} 34. Rb1 {[%clk 00:08:19]} {[%emt
00:00:26]} Ne5 {[%clk 00:20:52]} {[%emt 00:00:18]} 35. Qb3 {[%clk 00:06:40]}
{[%emt 00:02:10]} Qf6 {[%clk 00:18:33]} {[%emt 00:02:49]} 36. Qa4 {[%clk
00:03:22]} {[%emt 00:03:49]} Rf8 {[%clk 00:16:15]} {[%emt 00:02:47]} 37. Qf4
{[%clk 00:02:41]} {[%emt 00:01:11]} Qd8 {[%clk 00:10:46]} {[%emt 00:05:59]} 38.
Qe4 {[%clk 00:03:06]} {[%emt 00:00:06]} Ng4 {[%clk 00:10:15]} {[%emt 00:01:00]}
39. Bf3 {[%clk 00:01:27]} {[%emt 00:02:10]} Ne5 {[%clk 00:07:35]} {[%emt
00:03:10]} 40. Be2 {[%clk 00:00:38]} {[%emt 00:01:18]} Qf6 {[%clk 00:04:46]}
{[%emt 00:03:19]} 41. f4 {[%clk 00:22:14]} {[%emt 00:08:54]} Ng4 {[%clk
00:32:38]} {[%emt 00:02:37]} 42. Rb8 {[%clk 00:22:11]} {[%emt 00:00:35]} Qh4
{[%clk 00:25:15]} {[%emt 00:07:51]} 43. Bxg4 {[%clk 00:22:28]} {[%emt
00:00:13]} Qxg4 {[%clk 00:25:24]} {[%emt 00:00:22]} 44. f5 {[%clk 00:17:22]}
{[%emt 00:05:36]} Qxe4 {[%clk 00:21:13]} {[%emt 00:04:42]} 45. Nxe4 {[%clk
00:17:50]} {[%emt 00:00:02]} Bxf5 {[%clk 00:21:33]} {[%emt 00:00:09]} 46. Rxf8+
{[%clk 00:18:12]} {[%emt 00:00:08]} Kxf8 {[%clk 00:22:01]} {[%emt 00:00:02]} 47.
Nxd6 {[%clk 00:18:32]} {[%emt 00:00:10]} Bd3 {[%clk 00:21:09]} {[%emt
00:01:21]} 1/2-1/2

[ePGN "0.1;DGT LiveChess/2.1"]

[Event "Open International Liffre 2019"]
[Site "Liffre"]
[Date "2019.10.22"]
[Round "6.4"]
[White "Bailet, Pierre"]
[Black "Satyapragyan, Swayangsu"]
[Result "1-0"]
[TimeControl "1h30 + 30s/coup + 30 min /40 Coup"]
[WhiteTitle "IM"]
[BlackTitle "IM"]
[WhiteElo "2493"]
[BlackElo "2395"]

1. e4 {[%clk 01:30:43]} {[%emt 00:00:16]} e5 {[%clk 01:28:57]} {[%emt
00:02:04]} 2. Nf3 {[%clk 01:31:00]} {[%emt 00:00:13]} Nc6 {[%clk 01:29:22]}
{[%emt 00:00:05]} 3. Bc4 {[%clk 01:30:49]} {[%emt 00:00:40]} Nf6 {[%clk
01:29:44]} {[%emt 00:00:09]} 4. d3 {[%clk 01:31:12]} {[%emt 00:00:06]} Be7
{[%clk 01:29:29]} {[%emt 00:00:46]} 5. O-O {[%clk 01:31:18]} {[%emt 00:00:23]}
O-O {[%clk 01:29:55]} {[%emt 00:00:05]} 6. Re1 {[%clk 01:31:29]} {[%emt
00:00:18]} d6 {[%clk 01:30:06]} {[%emt 00:00:20]} 7. a4 {[%clk 01:31:36]}
{[%emt 00:00:22]} Be6 {[%clk 01:27:07]} {[%emt 00:03:30]} 8. Nc3 {[%clk
01:30:39]} {[%emt 00:01:27]} Nd4 {[%clk 01:19:51]} {[%emt 00:07:46]} 9. Nxd4
{[%clk 01:25:48]} {[%emt 00:05:20]} exd4 {[%clk 01:20:15]} {[%emt 00:00:08]} 10.
Ne2 {[%clk 01:26:11]} {[%emt 00:00:05]} Bxc4 {[%clk 01:10:12]} {[%emt
00:10:34]} 11. dxc4 {[%clk 01:26:32]} {[%emt 00:00:08]} c5 {[%clk 01:05:47]}
{[%emt 00:04:57]} 12. Nf4 {[%clk 01:12:00]} {[%emt 00:15:01]} Qd7 {[%clk
01:02:31]} {[%emt 00:03:46]} 13. Bd2 {[%clk 01:06:47]} {[%emt 00:05:43]} Rae8
{[%clk 00:48:11]} {[%emt 00:14:50]} 14. f3 {[%clk 00:55:59]} {[%emt 00:11:17]}
Bd8 {[%clk 00:36:58]} {[%emt 00:11:43]} 15. c3 {[%clk 00:53:00]} {[%emt
00:03:29]} Qc6 {[%clk 00:22:03]} {[%emt 00:15:26]} 16. cxd4 {[%clk 00:47:51]}
{[%emt 00:05:39]} cxd4 {[%clk 00:22:29]} {[%emt 00:00:04]} 17. b3 {[%clk
00:45:35]} {[%emt 00:02:46]} a5 {[%clk 00:20:46]} {[%emt 00:02:13]} 18. Bc1
{[%clk 00:40:06]} {[%emt 00:05:58]} Bb6 {[%clk 00:17:55]} {[%emt 00:03:22]} 19.
Bb2 {[%clk 00:39:40]} {[%emt 00:00:55]} Qc5 {[%clk 00:15:34]} {[%emt 00:02:52]}
20. Kh1 {[%clk 00:36:40]} {[%emt 00:03:30]} Qg5 {[%clk 00:10:16]} {[%emt
00:05:47]} 21. Ne2 {[%clk 00:34:25]} {[%emt 00:02:44]} d5 {[%clk 00:05:14]}
{[%emt 00:05:34]} 22. cxd5 {[%clk 00:32:50]} {[%emt 00:02:04]} Bc7 {[%clk
00:02:55]} {[%emt 00:02:49]} 23. Bxd4 {[%clk 00:24:39]} {[%emt 00:08:41]} Qh4
{[%clk 00:03:10]} {[%emt 00:00:15]} 24. g3 {[%clk 00:23:01]} {[%emt 00:02:08]}
Qh5 {[%clk 00:02:58]} {[%emt 00:00:42]} 25. Kg2 {[%clk 00:22:13]} {[%emt
00:01:18]} Nd7 {[%clk 00:03:24]} {[%emt 00:00:04]} 26. Nc3 {[%clk 00:18:39]}
{[%emt 00:04:04]} Qg6 {[%clk 00:02:20]} {[%emt 00:01:34]} 27. Nb5 {[%clk
00:17:33]} {[%emt 00:01:37]} Bb8 {[%clk 00:02:44]} {[%emt 00:00:06]} 28. d6
{[%clk 00:16:08]} {[%emt 00:01:55]} Bxd6 {[%clk 00:00:52]} {[%emt 00:02:22]} 29.
Nxd6 {[%clk 00:15:33]} {[%emt 00:01:04]} Qxd6 {[%clk 00:01:18]} {[%emt
00:00:05]} 30. Bxg7 {[%clk 00:15:48]} {[%emt 00:00:15]} 1-0

[ePGN "0.1;DGT LiveChess/2.1"]